[Event "MČR juniorů a juniorek v rapid šachu 2024"]
[Site "Hotel Fit Fun, Harrachov, Czech Republic"]
[Date "2024.09.21"]
[Round "3.25"]
[White "Dobsa Emma"]
[Black "Hyam Robin"]
[Result "1-0"]
[TimeControl "20+5"]
[WhiteFideId "23709391"]
[BlackFideId "23773413"]
[WhiteElo "1830"]
[BlackElo "1571"]

1. e4 {[%clk 00:20:08]} c5 {[%clk 00:20:09]} {[%emt 00:00:01]} 2. Nf3 {[%clk
00:20:12]} {[%emt 00:00:01]} d6 {[%clk 00:20:14]} 3. d4 {[%clk 00:20:14]}
{[%emt 00:00:04]} cxd4 {[%clk 00:20:18]} 4. Nxd4 {[%clk 00:20:19]} Nf6 {[%clk
00:20:23]} 5. Nc3 {[%clk 00:20:23]} g6 {[%clk 00:20:27]} {[%emt 00:00:01]} 6.
Be3 {[%clk 00:20:21]} {[%emt 00:00:05]} Bg7 {[%clk 00:20:25]} {[%emt 00:00:07]}
7. f3 {[%clk 00:20:25]} {[%emt 00:00:02]} O-O {[%clk 00:20:27]} {[%emt
00:00:02]} 8. Qd2 {[%clk 00:20:30]} {[%emt 00:00:01]} Nc6 {[%clk 00:20:05]}
{[%emt 00:00:27]} 9. O-O-O {[%clk 00:20:33]} {[%emt 00:00:02]} d5 {[%clk
00:20:10]} {[%emt 00:00:01]} 10. exd5 {[%clk 00:20:36]} {[%emt 00:00:02]} Nxd5
{[%clk 00:20:14]} 11. Nxc6 {[%clk 00:20:33]} {[%emt 00:00:08]} bxc6 {[%clk
00:20:18]} {[%emt 00:00:01]} 12. Bd4 {[%clk 00:20:37]} Qa5 {[%clk 00:17:36]}
{[%emt 00:02:48]} 13. Bxg7 {[%clk 00:18:53]} {[%emt 00:01:48]} Kxg7 {[%clk
00:17:35]} {[%emt 00:00:06]} 14. Nxd5 {[%clk 00:18:52]} {[%emt 00:00:06]} Qxd2+
{[%clk 00:16:12]} {[%emt 00:01:28]} 15. Rxd2 {[%clk 00:18:55]} cxd5 {[%clk
00:16:16]} 16. Rxd5 {[%clk 00:18:59]} {[%emt 00:00:02]} Be6 {[%clk 00:16:06]}
{[%emt 00:00:15]} 17. Rd2 {[%clk 00:18:17]} {[%emt 00:00:46]} Rac8 {[%clk
00:15:37]} {[%emt 00:00:34]} 18. b3 {[%clk 00:17:44]} {[%emt 00:00:39]} a5
{[%clk 00:15:05]} {[%emt 00:00:37]} 19. Bd3 {[%clk 00:17:32]} {[%emt 00:00:17]}
a4 {[%clk 00:14:51]} {[%emt 00:00:19]} 20. Kb2 {[%clk 00:17:25]} {[%emt
00:00:12]} Rfd8 {[%clk 00:14:22]} {[%emt 00:00:33]} 21. Rhd1 {[%clk 00:17:15]}
{[%emt 00:00:15]} Rd6 {[%clk 00:13:27]} {[%emt 00:01:01]} 22. Be4 {[%clk
00:16:49]} {[%emt 00:00:31]} Rb6 {[%clk 00:13:17]} {[%emt 00:00:15]} 23. Rd4
{[%clk 00:16:26]} {[%emt 00:00:28]} axb3 {[%clk 00:13:11]} {[%emt 00:00:11]} 24.
cxb3 {[%clk 00:16:06]} {[%emt 00:00:25]} f5 {[%clk 00:12:32]} {[%emt 00:00:43]}
25. Bd5 {[%clk 00:15:49]} {[%emt 00:00:23]} Rd8 {[%clk 00:12:13]} {[%emt
00:00:24]} 26. Bxe6 {[%clk 00:15:31]} {[%emt 00:00:23]} Rxd4 {[%clk 00:12:15]}
{[%emt 00:00:02]} 27. Rxd4 {[%clk 00:15:36]} {[%emt 00:00:01]} Rxe6 {[%clk
00:12:19]} 28. Rd2 {[%clk 00:15:40]} Kf6 {[%clk 00:12:12]} {[%emt 00:00:12]} 29.
a4 {[%clk 00:15:43]} {[%emt 00:00:02]} g5 {[%clk 00:12:03]} {[%emt 00:00:14]}
30. Ka3 {[%clk 00:15:33]} {[%emt 00:00:16]} h5 {[%clk 00:11:57]} {[%emt
00:00:10]} 31. a5 {[%clk 00:15:23]} {[%emt 00:00:15]} g4 {[%clk 00:11:53]}
{[%emt 00:00:09]} 32. f4 {[%clk 00:14:16]} {[%emt 00:01:12]} Ra6 {[%clk
00:11:40]} {[%emt 00:00:18]} 33. Ka4 {[%clk 00:14:15]} {[%emt 00:00:06]} e5
{[%clk 00:11:44]} {[%emt 00:00:01]} 34. fxe5+ {[%clk 00:13:12]} {[%emt
00:01:08]} Kxe5 {[%clk 00:11:46]} {[%emt 00:00:03]} 35. Kb5 {[%clk 00:13:16]}
{[%emt 00:00:01]} Ra8 {[%clk 00:11:42]} {[%emt 00:00:08]} 36. b4 {[%clk
00:12:48]} {[%emt 00:00:34]} f4 {[%clk 00:11:45]} {[%emt 00:00:02]} 37. a6
{[%clk 00:11:40]} {[%emt 00:01:13]} Ke4 {[%clk 00:11:39]} {[%emt 00:00:11]} 38.
Kb6 {[%clk 00:10:15]} {[%emt 00:01:30]} Rb8+ {[%clk 00:11:36]} {[%emt
00:00:08]} 39. Ka5 {[%clk 00:10:18]} {[%emt 00:00:01]} Ra8 {[%clk 00:11:23]}
{[%emt 00:00:18]} 40. b5 {[%clk 00:07:25]} {[%emt 00:02:59]} Ke3 {[%clk
00:11:15]} {[%emt 00:00:13]} 41. Ra2 {[%clk 00:07:26]} {[%emt 00:00:03]} f3
{[%clk 00:11:14]} {[%emt 00:00:07]} 42. gxf3 {[%clk 00:07:30]} {[%emt
00:00:01]} gxf3 {[%clk 00:11:15]} {[%emt 00:00:04]} 43. b6 {[%clk 00:07:30]}
{[%emt 00:00:05]} f2 {[%clk 00:11:11]} {[%emt 00:00:09]} 44. Ra1 {[%clk
00:06:57]} {[%emt 00:00:39]} Rf8 {[%clk 00:10:40]} {[%emt 00:00:36]} 45. a7
{[%clk 00:06:36]} {[%emt 00:00:26]} f1=Q {[%clk 00:10:36]} {[%emt 00:00:08]} 46.
Rxf1 {[%clk 00:06:32]} {[%emt 00:00:10]} Rxf1 {[%clk 00:10:39]} {[%emt
00:00:01]} 47. b7 {[%clk 00:06:32]} {[%emt 00:00:05]} Ra1+ {[%clk 00:10:19]}
{[%emt 00:00:24]} 48. Kb6 {[%clk 00:06:35]} {[%emt 00:00:03]} Kf2 {[%clk
00:09:54]} {[%emt 00:00:30]} 49. a8=Q {[%clk 00:06:26]} {[%emt 00:00:14]} 1-0



[ePGN "0.1;DGT LiveChess/2.2.6"]

[Event "MČR juniorů a juniorek v rapid šachu 2024"]
[Site "Hotel Fit Fun, Harrachov, Czech Republic"]
[Date "2024.09.21"]
[Round "3.26"]
[White "Nespurek Jakub"]
[Black "Lebeda Frantisek Jiri"]
[Result "1-0"]
[TimeControl "20+5"]
[WhiteFideId "391816"]
[WhiteElo "1817"]
[BlackElo "1000"]

1. e4 {[%clk 00:20:07]} c5 {[%clk 00:20:08]} {[%emt 00:00:02]} 2. c3 {[%clk
00:20:11]} {[%emt 00:00:02]} Nc6 {[%clk 00:20:11]} {[%emt 00:00:02]} 3. d4
{[%clk 00:20:15]} {[%emt 00:00:02]} cxd4 {[%clk 00:20:14]} {[%emt 00:00:02]} 4.
cxd4 {[%clk 00:20:18]} {[%emt 00:00:02]} d5 {[%clk 00:20:16]} {[%emt 00:00:01]}
5. e5 {[%clk 00:20:10]} {[%emt 00:00:14]} Bf5 {[%clk 00:20:17]} {[%emt
00:00:04]} 6. Bd3 {[%clk 00:19:36]} {[%emt 00:00:38]} Bxd3 {[%clk 00:20:19]}
{[%emt 00:00:03]} 7. Qxd3 {[%clk 00:19:39]} {[%emt 00:00:02]} e6 {[%clk
00:20:12]} {[%emt 00:00:12]} 8. f4 {[%clk 00:19:07]} {[%emt 00:00:37]} Bb4+
{[%clk 00:19:55]} {[%emt 00:00:20]} 9. Nc3 {[%clk 00:18:52]} {[%emt 00:00:22]}
Nge7 {[%clk 00:19:42]} {[%emt 00:00:17]} 10. Nf3 {[%clk 00:18:30]} {[%emt
00:00:28]} O-O {[%clk 00:19:36]} {[%emt 00:00:10]} 11. Bd2 {[%clk 00:17:28]}
{[%emt 00:01:07]} a5 {[%clk 00:19:04]} {[%emt 00:00:37]} 12. g4 {[%clk
00:16:07]} {[%emt 00:01:27]} Qd7 {[%clk 00:18:18]} {[%emt 00:00:50]} 13. Ng5
{[%clk 00:15:04]} {[%emt 00:01:09]} g6 {[%clk 00:17:12]} {[%emt 00:01:11]} 14.
Qh3 {[%clk 00:13:05]} {[%emt 00:02:03]} 1-0



[ePGN "0.1;DGT LiveChess/2.2.6"]

[Event "MČR juniorů a juniorek v rapid šachu 2024"]
[Site "Hotel Fit Fun, Harrachov, Czech Republic"]
[Date "2024.09.21"]
[Round "3.27"]
[White "Vondra Filip"]
[Black "Sadil Antonin"]
[Result "0-1"]
[TimeControl "20+5"]
[WhiteFideId "23725176"]
[BlackFideId "23735597"]
[WhiteElo "1598"]
[BlackElo "1784"]

1. e4 {[%clk 00:20:06]} {[%emt 00:00:01]} c5 {[%clk 00:20:07]} {[%emt
00:00:03]} 2. Nf3 {[%clk 00:20:09]} {[%emt 00:00:03]} d6 {[%clk 00:20:11]}
{[%emt 00:00:01]} 3. c4 {[%clk 00:20:13]} {[%emt 00:00:01]} e5 {[%clk
00:20:14]} 4. d3 {[%clk 00:20:17]} {[%emt 00:00:01]} Nc6 {[%clk 00:20:18]}
{[%emt 00:00:02]} 5. Nc3 {[%clk 00:20:19]} {[%emt 00:00:03]} Nf6 {[%clk
00:20:16]} {[%emt 00:00:07]} 6. Bg5 {[%clk 00:20:22]} {[%emt 00:00:01]} Be7
{[%clk 00:20:08]} {[%emt 00:00:13]} 7. Be2 {[%clk 00:20:26]} Bg4 {[%clk
00:19:39]} {[%emt 00:00:35]} 8. O-O {[%clk 00:20:18]} {[%emt 00:00:14]} O-O
{[%clk 00:19:40]} {[%emt 00:00:03]} 9. Nd5 {[%clk 00:19:56]} {[%emt 00:00:27]}
Nxd5 {[%clk 00:19:12]} {[%emt 00:00:34]} 10. cxd5 {[%clk 00:19:45]} {[%emt
00:00:16]} Bxg5 {[%clk 00:18:46]} {[%emt 00:00:31]} 11. dxc6 {[%clk 00:19:46]}
{[%emt 00:00:04]} bxc6 {[%clk 00:18:32]} {[%emt 00:00:19]} 12. Nxg5 {[%clk
00:19:25]} Bxe2 {[%clk 00:18:30]} {[%emt 00:00:32]} 13. Nxf7 {[%clk 00:18:53]}
{[%emt 00:00:37]} Bxd1 {[%clk 00:17:53]} {[%emt 00:00:43]} 14. Nxd8 {[%clk
00:18:55]} {[%emt 00:00:02]} Be2 {[%clk 00:16:33]} {[%emt 00:01:25]} 15. Rfe1
{[%clk 00:18:59]} {[%emt 00:00:01]} Bxd3 {[%clk 00:16:00]} {[%emt 00:00:38]} 16.
Nxc6 {[%clk 00:19:01]} {[%emt 00:00:03]} Rf6 {[%clk 00:12:37]} {[%emt
00:03:27]} 17. Rad1 {[%clk 00:18:37]} {[%emt 00:00:30]} Bc4 {[%clk 00:12:19]}
{[%emt 00:00:22]} 18. b3 {[%clk 00:18:20]} {[%emt 00:00:23]} Bf7 {[%clk
00:11:56]} {[%emt 00:00:27]} 19. f3 {[%clk 00:17:51]} {[%emt 00:00:35]} a5
{[%clk 00:11:43]} {[%emt 00:00:18]} 20. Rd3 {[%clk 00:16:00]} {[%emt 00:01:56]}
Kf8 {[%clk 00:11:13]} {[%emt 00:00:35]} 21. Red1 {[%clk 00:15:31]} {[%emt
00:00:34]} Be8 {[%clk 00:10:50]} {[%emt 00:00:27]} 22. Nxa5 {[%clk 00:14:18]}
{[%emt 00:01:19]} Rxa5 {[%clk 00:10:53]} {[%emt 00:00:02]} 23. Rxd6 {[%clk
00:14:23]} {[%emt 00:00:01]} Rxd6 {[%clk 00:10:25]} {[%emt 00:00:33]} 24. Rxd6
{[%clk 00:14:26]} Ke7 {[%clk 00:10:23]} {[%emt 00:00:06]} 25. Rd5 {[%clk
00:14:28]} {[%emt 00:00:04]} Ke6 {[%clk 00:09:00]} {[%emt 00:01:28]} 26. b4
{[%clk 00:14:05]} {[%emt 00:00:28]} Rxa2 {[%clk 00:08:31]} {[%emt 00:00:34]} 27.
bxc5 {[%clk 00:13:57]} {[%emt 00:00:13]} Ra6 {[%clk 00:06:53]} {[%emt
00:01:43]} 28. Kf2 {[%clk 00:13:51]} {[%emt 00:00:12]} Rc6 {[%clk 00:06:08]}
{[%emt 00:00:49]} 29. Ke3 {[%clk 00:13:11]} {[%emt 00:00:46]} Bf7 {[%clk
00:05:44]} {[%emt 00:00:28]} 30. f4 {[%clk 00:13:05]} {[%emt 00:00:11]} exf4+
{[%clk 00:05:12]} {[%emt 00:00:37]} 31. Kxf4 {[%clk 00:13:09]} {[%emt
00:00:02]} g6 {[%clk 00:04:34]} {[%emt 00:00:43]} 32. Kg5 {[%clk 00:11:33]}
{[%emt 00:01:40]} Rc8 {[%clk 00:03:50]} {[%emt 00:00:49]} 33. Kf4 {[%clk
00:11:09]} {[%emt 00:00:30]} h6 {[%clk 00:03:43]} {[%emt 00:00:13]} 34. h4
{[%clk 00:10:15]} {[%emt 00:00:58]} Rc6 {[%clk 00:02:51]} {[%emt 00:00:57]} 35.
g4 {[%clk 00:09:23]} {[%emt 00:00:58]} Ke7 {[%clk 00:01:49]} {[%emt 00:01:07]}
36. Re5+ {[%clk 00:09:24]} {[%emt 00:00:04]} Kd7 {[%clk 00:01:37]} {[%emt
00:00:17]} 37. h5 {[%clk 00:08:09]} {[%emt 00:01:19]} g5+ {[%clk 00:01:23]}
{[%emt 00:00:19]} 38. Kf5 {[%clk 00:08:02]} {[%emt 00:00:12]} Be6+ {[%clk
00:01:19]} {[%emt 00:00:10]} 39. Kf6 {[%clk 00:07:34]} {[%emt 00:00:32]} Bxg4+
{[%clk 00:01:20]} {[%emt 00:00:04]} 40. Kg7 {[%clk 00:07:27]} {[%emt 00:00:12]}
Bxh5 {[%clk 00:01:21]} {[%emt 00:00:05]} 41. Rd5+ {[%clk 00:07:31]} Ke7 {[%clk
00:01:07]} {[%emt 00:00:18]} 42. Kh7 {[%clk 00:03:59]} {[%emt 00:03:38]} Bg6
{[%clk 00:00:56]} {[%emt 00:00:16]} 43. Kxh6 {[%clk 00:02:52]} {[%emt
00:01:12]} Bxe4+ {[%clk 00:00:40]} {[%emt 00:00:21]} 44. Rd6 {[%clk 00:02:56]}
Rxc5 {[%clk 00:00:43]} {[%emt 00:00:03]} 45. Rd1 {[%clk 00:02:43]} {[%emt
00:00:18]} Kf6 {[%clk 00:00:39]} {[%emt 00:00:09]} 46. Rg1 {[%clk 00:02:24]}
{[%emt 00:00:23]} Rc8 {[%clk 00:00:32]} {[%emt 00:00:13]} 47. Kh5 {[%clk
00:02:14]} {[%emt 00:00:14]} Bf3+ {[%clk 00:00:31]} {[%emt 00:00:06]} 48. Kh6
{[%emt 00:01:08]} 0-1



[ePGN "0.1;DGT LiveChess/2.2.6"]

[Event "MČR juniorů a juniorek v rapid šachu 2024"]
[Site "Hotel Fit Fun, Harrachov, Czech Republic"]
[Date "2024.09.21"]
[Round "3.28"]
[White "Musil Tomas"]
[Black "Dorazilova Kristyna"]
[Result "0-1"]
[TimeControl "20+5"]
[WhiteFideId "23762888"]
[BlackFideId "23739142"]
[WhiteElo "1519"]
[BlackElo "1771"]

1. e4 {[%clk 00:20:06]} {[%emt 00:00:01]} d6 {[%clk 00:20:14]} {[%emt
00:00:02]} 2. Nf3 {[%clk 00:20:07]} {[%emt 00:00:04]} Nf6 {[%clk 00:20:18]} 3.
Nc3 {[%clk 00:20:10]} {[%emt 00:00:02]} Nbd7 {[%clk 00:20:22]} {[%emt
00:00:01]} 4. d4 {[%clk 00:19:59]} {[%emt 00:00:16]} e5 {[%emt 00:00:03]} 5.
dxe5 {[%clk 00:19:55]} {[%emt 00:00:08]} Nxe5 {[%clk 00:20:30]} 6. Nxe5 {[%clk
00:19:55]} {[%emt 00:00:04]} dxe5 {[%clk 00:20:34]} 7. Qxd8+ Kxd8 {[%clk
00:20:38]} 8. Bg5 {[%clk 00:20:00]} {[%emt 00:00:03]} c6 {[%clk 00:20:41]}
{[%emt 00:00:03]} 9. Bc4 {[%clk 00:19:40]} {[%emt 00:00:24]} Be6 {[%clk
00:20:45]} {[%emt 00:00:02]} 10. O-O-O+ {[%clk 00:19:41]} {[%emt 00:00:03]} Kc7
{[%clk 00:20:49]} {[%emt 00:00:01]} 11. Bxe6 {[%clk 00:19:37]} {[%emt
00:00:09]} fxe6 {[%clk 00:20:53]} {[%emt 00:00:02]} 12. Bxf6 {[%clk 00:19:16]}
{[%emt 00:00:26]} gxf6 {[%clk 00:20:57]} {[%emt 00:00:01]} 13. Rd2 {[%clk
00:19:17]} {[%emt 00:00:04]} Bh6 {[%clk 00:21:01]} 14. Rhd1 {[%clk 00:19:02]}
{[%emt 00:00:20]} Rad8 {[%clk 00:21:03]} {[%emt 00:00:03]} 15. g3 {[%clk
00:18:45]} {[%emt 00:00:22]} Rxd2 {[%clk 00:20:43]} {[%emt 00:00:25]} 16. Rxd2
{[%clk 00:18:48]} {[%emt 00:00:02]} Bxd2+ 17. Kxd2 {[%clk 00:18:52]} Rd8+
{[%clk 00:20:14]} {[%emt 00:00:28]} 18. Ke3 {[%clk 00:18:56]} {[%emt 00:00:02]}
Kd6 {[%clk 00:20:15]} {[%emt 00:00:04]} 19. b4 {[%clk 00:18:35]} {[%emt
00:00:26]} Ke7 {[%clk 00:20:00]} {[%emt 00:00:20]} 20. Na4 {[%clk 00:18:07]}
{[%emt 00:00:33]} Rd4 {[%clk 00:19:18]} {[%emt 00:00:46]} 21. c3 {[%clk
00:18:02]} {[%emt 00:00:10]} Rd1 {[%clk 00:19:12]} {[%emt 00:00:11]} 22. Nc5
{[%clk 00:17:45]} {[%emt 00:00:22]} b6 {[%clk 00:19:01]} {[%emt 00:00:17]} 23.
Nd3 {[%clk 00:17:09]} {[%emt 00:00:40]} Ra1 {[%clk 00:18:56]} {[%emt 00:00:12]}
24. f4 {[%clk 00:17:05]} {[%emt 00:00:08]} exf4+ {[%clk 00:18:53]} {[%emt
00:00:08]} 25. Nxf4 {[%clk 00:16:52]} {[%emt 00:00:17]} Rxa2 {[%emt 00:00:03]}
26. h3 {[%clk 00:16:34]} {[%emt 00:00:23]} Ra3 {[%clk 00:18:52]} {[%emt
00:00:09]} 27. Kd3 {[%clk 00:16:35]} {[%emt 00:00:04]} b5 {[%clk 00:18:02]}
{[%emt 00:00:55]} 28. Ne2 {[%clk 00:15:36]} {[%emt 00:01:03]} e5 {[%clk
00:17:55]} {[%emt 00:00:12]} 29. g4 {[%clk 00:15:21]} {[%emt 00:00:20]} Ra1
{[%clk 00:16:48]} {[%emt 00:01:12]} 30. h4 {[%clk 00:15:12]} {[%emt 00:00:14]}
Rh1 {[%clk 00:16:47]} {[%emt 00:00:07]} 31. h5 {[%clk 00:15:15]} {[%emt
00:00:02]} Rh3+ {[%clk 00:16:40]} {[%emt 00:00:12]} 32. Kd2 {[%clk 00:15:12]}
{[%emt 00:00:08]} Rh4 {[%clk 00:16:24]} {[%emt 00:00:21]} 33. Ng3 {[%clk
00:14:32]} {[%emt 00:00:44]} Rxg4 {[%clk 00:16:28]} {[%emt 00:00:02]} 34. Nf5+
{[%clk 00:14:34]} {[%emt 00:00:02]} Ke6 {[%clk 00:16:32]} {[%emt 00:00:01]} 35.
Ke3 {[%clk 00:14:35]} {[%emt 00:00:04]} Rg5 {[%clk 00:16:00]} {[%emt 00:00:38]}
36. Kf3 {[%clk 00:14:22]} {[%emt 00:00:18]} Rxf5+ {[%clk 00:15:13]} {[%emt
00:00:52]} 37. exf5+ {[%clk 00:14:25]} {[%emt 00:00:02]} Kxf5 {[%clk 00:15:17]}
{[%emt 00:00:01]} 0-1



[ePGN "0.1;DGT LiveChess/2.2.6"]

[Event "MČR juniorů a juniorek v rapid šachu 2024"]
[Site "Hotel Fit Fun, Harrachov, Czech Republic"]
[Date "2024.09.21"]
[Round "3.29"]
[White "Tichy Richard"]
[Black "Nespora Tatana"]
[Result "0-1"]
[TimeControl "20+5"]
[WhiteFideId "23727063"]
[BlackFideId "392286"]
[WhiteElo "1698"]
[BlackElo "1697"]

1. Nf3 {[%clk 00:20:05]} {[%emt 00:16:34]} g6 {[%clk 00:19:39]} {[%emt
00:00:33]} 2. d4 {[%clk 00:20:08]} {[%emt 00:00:02]} Bg7 {[%clk 00:19:39]}
{[%emt 00:00:05]} 3. g3 {[%clk 00:20:11]} {[%emt 00:00:02]} Nf6 {[%clk
00:19:42]} {[%emt 00:00:02]} 4. c4 {[%clk 00:20:13]} {[%emt 00:00:03]} d6
{[%clk 00:19:44]} {[%emt 00:00:03]} 5. Nc3 {[%clk 00:20:16]} {[%emt 00:00:02]}
O-O {[%clk 00:19:43]} {[%emt 00:00:06]} 6. Bg2 {[%clk 00:20:20]} {[%emt
00:00:01]} c6 {[%clk 00:19:35]} {[%emt 00:00:12]} 7. e4 {[%clk 00:20:20]}
{[%emt 00:00:05]} e5 {[%clk 00:19:05]} {[%emt 00:00:36]} 8. d5 {[%clk
00:20:02]} {[%emt 00:00:23]} cxd5 {[%clk 00:18:57]} {[%emt 00:00:13]} 9. cxd5
{[%clk 00:19:59]} {[%emt 00:00:07]} a5 {[%clk 00:18:46]} {[%emt 00:00:17]} 10.
O-O {[%clk 00:19:50]} {[%emt 00:00:14]} Na6 {[%clk 00:18:48]} {[%emt 00:00:03]}
11. Nb5 {[%clk 00:19:33]} {[%emt 00:00:22]} Nxe4 {[%clk 00:18:02]} {[%emt
00:00:51]} 12. Qe2 {[%clk 00:18:49]} {[%emt 00:00:49]} f5 {[%clk 00:17:29]}
{[%emt 00:00:38]} 13. h4 {[%clk 00:17:55]} {[%emt 00:01:00]} Nac5 {[%clk
00:15:49]} {[%emt 00:01:45]} 14. Ng5 {[%clk 00:15:32]} {[%emt 00:02:28]} Nf6
{[%clk 00:12:22]} {[%emt 00:03:32]} 15. Qc4 {[%clk 00:14:06]} {[%emt 00:01:31]}
Qe7 {[%clk 00:11:34]} {[%emt 00:00:52]} 16. Rd1 {[%clk 00:08:37]} {[%emt
00:05:35]} Bd7 {[%clk 00:11:01]} {[%emt 00:00:38]} 17. Nc7 {[%clk 00:08:11]}
{[%emt 00:00:30]} Rac8 {[%clk 00:10:35]} {[%emt 00:00:31]} 18. Nge6 {[%clk
00:07:35]} {[%emt 00:00:42]} Bxe6 {[%clk 00:09:42]} {[%emt 00:00:57]} 19. Nxe6
{[%clk 00:07:00]} {[%emt 00:00:40]} Nxe6 {[%clk 00:09:43]} {[%emt 00:00:04]} 20.
Qb3 {[%clk 00:06:12]} {[%emt 00:00:54]} Nc5 {[%clk 00:09:42]} {[%emt 00:00:05]}
21. Qb5 {[%clk 00:05:18]} {[%emt 00:00:59]} Nfe4 {[%clk 00:09:04]} {[%emt
00:00:43]} 22. Qxa5 {[%clk 00:05:02]} {[%emt 00:00:22]} f4 {[%clk 00:09:06]}
{[%emt 00:00:02]} 23. Qb4 {[%clk 00:04:26]} {[%emt 00:00:39]} fxg3 {[%clk
00:07:38]} {[%emt 00:01:35]} 24. Bxe4 {[%clk 00:03:49]} {[%emt 00:00:41]} Qxh4
{[%clk 00:07:40]} {[%emt 00:00:04]} 25. fxg3 {[%clk 00:03:10]} {[%emt
00:00:45]} Qxg3+ {[%clk 00:07:29]} {[%emt 00:00:15]} 26. Kh1 {[%clk 00:03:01]}
{[%emt 00:00:14]} Rf2 {[%clk 00:07:04]} {[%emt 00:00:29]} 0-1



[ePGN "0.1;DGT LiveChess/2.2.6"]

[Event "MČR juniorů a juniorek v rapid šachu 2024"]
[Site "Hotel Fit Fun, Harrachov, Czech Republic"]
[Date "2024.09.21"]
[Round "3.3"]
[White "Skypala Ondrej"]
[Black "Husa Daniel"]
[Result "1-0"]
[TimeControl "20+5"]
[WhiteFideId "366285"]
[BlackFideId "393487"]
[WhiteElo "2033"]
[BlackElo "1866"]

1. c4 {[%clk 00:20:07]} {[%emt 00:00:03]} c5 {[%clk 00:20:01]} {[%emt
00:00:04]} 2. g3 {[%clk 00:20:09]} {[%emt 00:00:07]} g6 {[%clk 00:19:56]}
{[%emt 00:00:11]} 3. Bg2 {[%clk 00:20:13]} {[%emt 00:00:01]} Bg7 {[%clk
00:19:56]} {[%emt 00:00:05]} 4. Nf3 {[%clk 00:20:16]} Nf6 {[%clk 00:19:48]}
{[%emt 00:00:13]} 5. Nc3 {[%clk 00:20:20]} {[%emt 00:00:02]} O-O {[%clk
00:18:45]} {[%emt 00:01:07]} 6. d4 {[%clk 00:20:23]} {[%emt 00:00:02]} d5
{[%clk 00:17:29]} {[%emt 00:01:22]} 7. dxc5 {[%clk 00:19:47]} {[%emt 00:00:42]}
dxc4 {[%clk 00:17:22]} {[%emt 00:00:11]} 8. Qxd8 {[%clk 00:19:34]} {[%emt
00:00:18]} Rxd8 {[%clk 00:17:25]} {[%emt 00:00:02]} 9. Ne5 {[%clk 00:18:03]}
{[%emt 00:01:36]} Nbd7 {[%clk 00:15:51]} {[%emt 00:01:38]} 10. Nxc4 {[%clk
00:17:12]} {[%emt 00:00:56]} Nxc5 {[%clk 00:15:06]} {[%emt 00:00:50]} 11. Be3
{[%clk 00:17:16]} {[%emt 00:00:02]} Ne6 {[%clk 00:14:25]} {[%emt 00:00:46]} 12.
h3 {[%clk 00:15:21]} {[%emt 00:02:00]} Nd4 {[%clk 00:10:35]} {[%emt 00:03:54]}
13. O-O-O {[%clk 00:14:53]} {[%emt 00:00:34]} Ne8 {[%clk 00:09:55]} {[%emt
00:00:45]} 14. Na5 {[%clk 00:13:33]} {[%emt 00:01:25]} Rb8 {[%clk 00:08:41]}
{[%emt 00:01:19]} 15. Rd2 {[%clk 00:12:38]} {[%emt 00:01:00]} b6 {[%clk
00:05:28]} {[%emt 00:03:19]} 16. Bxd4 {[%clk 00:12:14]} {[%emt 00:00:29]} bxa5
{[%clk 00:05:16]} {[%emt 00:00:17]} 17. Rhd1 {[%clk 00:11:08]} {[%emt
00:01:10]} Bxd4 {[%clk 00:04:47]} {[%emt 00:00:35]} 18. Rxd4 {[%clk 00:11:12]}
{[%emt 00:00:01]} Rxd4 {[%clk 00:04:40]} {[%emt 00:00:12]} 19. Rxd4 {[%clk
00:11:15]} {[%emt 00:00:01]} Bb7 {[%clk 00:02:43]} {[%emt 00:01:59]} 20. Bxb7
{[%clk 00:11:13]} {[%emt 00:00:11]} Rxb7 {[%clk 00:02:47]} 21. Ra4 {[%clk
00:11:11]} {[%emt 00:00:06]} Nd6 {[%clk 00:02:38]} {[%emt 00:00:15]} 22. Rxa5
{[%clk 00:10:57]} {[%emt 00:00:19]} Nc4 {[%clk 00:02:27]} {[%emt 00:00:16]} 23.
Rb5 {[%clk 00:10:52]} {[%emt 00:00:10]} Rc7 {[%clk 00:02:13]} {[%emt 00:00:19]}
24. b3 {[%clk 00:10:01]} {[%emt 00:00:56]} Nd6 {[%clk 00:02:00]} {[%emt
00:00:18]} 25. Rb8+ {[%clk 00:10:03]} {[%emt 00:00:02]} Kg7 {[%clk 00:02:04]}
{[%emt 00:00:01]} 26. Kb2 {[%clk 00:09:57]} {[%emt 00:00:11]} h5 {[%clk
00:01:54]} {[%emt 00:00:15]} 27. Rd8 {[%clk 00:09:48]} {[%emt 00:00:14]} Nf5
{[%clk 00:01:33]} {[%emt 00:00:27]} 28. b4 {[%clk 00:09:32]} {[%emt 00:00:22]}
e5 {[%clk 00:01:29]} {[%emt 00:00:09]} 29. e3 {[%clk 00:09:17]} {[%emt
00:00:19]} h4 {[%clk 00:01:16]} {[%emt 00:00:18]} 30. g4 {[%clk 00:09:18]}
{[%emt 00:00:05]} Ne7 {[%clk 00:00:51]} {[%emt 00:00:30]} 31. b5 {[%clk
00:09:17]} {[%emt 00:00:06]} Rb7 {[%clk 00:00:44]} {[%emt 00:00:12]} 32. a4
{[%clk 00:09:18]} {[%emt 00:00:04]} Kf6 {[%clk 00:00:22]} {[%emt 00:00:26]} 33.
Ne4+ {[%clk 00:09:21]} {[%emt 00:00:02]} Kg7 {[%clk 00:00:23]} {[%emt
00:00:05]} 34. Nd6 {[%clk 00:09:00]} {[%emt 00:00:26]} Rb6 {[%clk 00:00:09]}
{[%emt 00:00:19]} 35. a5 {[%clk 00:09:04]} 1-0



[ePGN "0.1;DGT LiveChess/2.2.6"]